fUSD/lending_fUSD_20240220
["ID","MTS","AMOUNT","RATE_DAILY","PERIOD"]
[314534853,1708405917008,-2343.98,0.00039029,6]
[314534854,1708405917017,-1165.67,0.00039029,6]
[314534855,1708405917027,-1165.84,0.00039029,6]
[314534856,1708405917036,-543.99,0.00039029,6]
[314534857,1708405917046,-649.17,0.00039029,6]
[314534858,1708405917055,-882.84,0.00039029,6]
[314534859,1708405917065,-188.490285,0.00039029,14]
[314534860,1708405917074,-911.74,0.00039029,6]
[314534861,1708405917083,-2167.09,0.00039029,6]
[314534862,1708405917093,-4210.64,0.00039029,6]
[314534863,1708405917102,-19216.17,0.00039029,6]
[314534864,1708405917111,-151.0,0.00039029,14]
[314534865,1708405917121,-151.0,0.00039029,14]
[314534866,1708405917130,-948.0,0.00039029,6]
[314534867,1708405917140,-500.0,0.00039029,6]
[314534868,1708405917149,-157.733043,0.00039029,14]
[314534869,1708405917160,-157.733043,0.00039029,14]
[314534870,1708405917169,-1093.22,0.00039029,6]
[314534871,1708405917179,-151.0,0.00039029,14]
[314534872,1708405917189,-1692.44,0.00039029,6]
[314534873,1708405917198,-500.0,0.00039029,6]
[314534874,1708405917208,-1578.14,0.00039029,6]
[314534875,1708405917217,-1099.35,0.00039029,6]
[314534876,1708405917226,-151.0,0.00039029,14]
[314534877,1708405917235,-385.877273,0.00039029,14]
[314534878,1708405917245,-975.65,0.00039029,6]
[314534879,1708405917254,-708.65,0.00039029,6]
[314534880,1708405917263,-385.877273,0.00039029,14]
[314534881,1708405917273,-6268.26,0.00039029,6]
[314534882,1708405917283,-151.0,0.00039029,14]
[314534883,1708405917293,-500.0,0.00039029,6]
[314534884,1708405917302,-359.551124,0.00039029,14]
[314534885,1708405917312,-500.0,0.00039029,6]
[314534886,1708405917322,-901.49,0.00039029,6]
[314534887,1708405917332,-359.551124,0.00039029,14]
[314534888,1708405917341,-651.6,0.00039029,6]
[314534889,1708405917351,-546.017272,0.00039029,14]
[314534890,1708405917360,-1025.4,0.00039029,6]
[314534891,1708405917369,-500.0,0.00039029,6]
[314534892,1708405917379,-546.017272,0.00039029,14]
[314534893,1708405917388,-3156.54,0.00039029,6]
[314534894,1708405917398,-152.370007,0.00039029,7]
[314534895,1708405917408,-857.52,0.00039029,6]
[314534896,1708405917418,-1107.07,0.00039029,6]
[314534897,1708405917428,-151.487277,0.00039029,14]
[314534898,1708405917439,-151.0,0.00039029,14]
[314534899,1708405917448,-799.36,0.00039029,6]
[314534900,1708405917458,-833.39,0.00039029,6]
[314534901,1708405917468,-757.3,0.00039029,6]
[314534902,1708405917478,-3560.7,0.00039029,6]
[314534903,1708405917487,-151.0,0.00039029,14]
[314534904,1708405917497,-1705.39,0.00039029,6]
[314534905,1708405917507,-789.45,0.00039029,6]
[314534906,1708405917516,-236.096359,0.00039029,14]
[314534907,1708405917526,-151.0,0.00039029,14]
[314534908,1708405917535,-236.096359,0.00039029,14]
[314534909,1708405917546,-547.996747,0.00039029,14]
[314534910,1708405917555,-3144.99,0.00039029,6]
[314534911,1708405917565,-547.996747,0.00039029,14]
[314534912,1708405917575,-157.555958,0.00039029,14]
[314534913,1708405917585,-5007.03,0.00039029,6]
[314534914,1708405917595,-1314.19,0.00039029,6]
[314534915,1708405917604,-157.555958,0.00039029,14]
[314534916,1708405917614,-151.0,0.00039029,14]
[314534917,1708405917623,-985.9,0.00039029,6]
[314534918,1708405917633,-151.0,0.00039029,14]
[314534919,1708405917643,-151.0,0.00039029,14]
[314534920,1708405917653,-354.775683,0.00039029,14]
[314534921,1708405917662,-1051.08,0.00039029,6]
[314534922,1708405917672,-1499.97,0.00039029,6]
[314534923,1708405917683,-354.775683,0.00039029,14]
[314534924,1708405917693,-151.0,0.00039029,14]
[314534925,1708405917703,-1447.386377,0.00039029,14]
[314534926,1708405917713,-1920.807612,0.00039029,14]
[314534927,1708405917723,-7345.36,0.00039029,6]
[314534928,1708405917734,-1204.36,0.00039029,6]
[314534929,1708405917744,-1920.807612,0.00039029,14]
[314534930,1708405917756,-1447.386377,0.00039029,14]
[314534931,1708405917765,-225.007332,0.00039029,14]
[314534932,1708405917774,-151.0,0.00039029,14]
[314534933,1708405917783,-500.0,0.00039029,6]
[314534934,1708405917793,-225.007332,0.00039029,14]
[314534935,1708405917802,-151.0,0.00039029,14]
[314534936,1708405917812,-770.93,0.00039029,6]
[314534937,1708405917821,-2816.2,0.00039029,6]
[314534938,1708405917830,-151.0,0.00039029,14]
[314534939,1708405917840,-856.91,0.00039029,6]
[314534940,1708405917849,-566.48,0.00039029,6]
[314534941,1708405917859,-151.0,0.00039029,14]
[314534942,1708405917871,-631.33,0.00039029,6]
[314534943,1708405917882,-529.69,0.00039029,6]
[314534944,1708405917891,-934.23,0.00039029,6]
[314534945,1708405917901,-151.0,0.00039029,14]
[314534946,1708405917910,-151.0,0.00039029,14]
[314534947,1708405917920,-151.0,0.00039029,14]
[314534948,1708405917930,-503.72,0.00039029,6]
[314534949,1708405917941,-763.13,0.00039029,6]
[314534950,1708405917951,-506.06,0.00039029,6]
[314534951,1708405917960,-500.0,0.00039029,6]
[314534952,1708405917970,-500.0,0.00039029,6]
[314534953,1708405917982,-802.39,0.00039029,6]
[314534954,1708405917993,-3259.517972,0.00039029,14]
[314534955,1708405918004,-1007.84,0.00039029,6]
[314534956,1708405918014,-500.0,0.0003903,6]
[314534957,1708405918025,-500.0,0.0003903,6]
[314534958,1708405918035,-500.0,0.0003903,6]
[314534959,1708405918045,-1224.75,0.0003903,6]
[314534960,1708405918054,-500.0,0.0003903,6]
[314534961,1708405918064,-546.6,0.0003903,2]
[314534962,1708405918074,-500.0,0.0003903,6]
[314534963,1708405918085,-500.0,0.0003903,6]
[314534964,1708405918095,-500.0,0.0003903,6]
[314534965,1708405918105,-500.0,0.0003903,6]
[314534966,1708405918115,-500.0,0.0003903,6]
[314534967,1708405918126,-500.0,0.0003903,6]
[314534968,1708405918138,-1502.26,0.0003903,6]
[314534969,1708405918147,-500.0,0.0003903,6]
[314534970,1708405918156,-500.0,0.0003903,6]
[314534971,1708405918166,-855.67,0.0003903,6]
[314534972,1708405918175,-500.0,0.0003903,6]
[314534973,1708405918184,-500.0,0.0003903,6]
[314534974,1708405918196,-500.0,0.0003903,6]
[314534975,1708405918206,-500.0,0.0003903,6]
[314534976,1708405918216,-500.0,0.0003903,6]
[314534977,1708405918225,-500.0,0.0003903,6]
[314534978,1708405918234,-500.0,0.0003903,6]
[314534979,1708405918244,-500.0,0.0003903,6]
[314534980,1708405918253,-500.0,0.0003903,6]
[314534981,1708405918263,-500.0,0.0003903,6]
[314534982,1708405918273,-151.0,0.0003903,14]
[314534983,1708405918282,-500.0,0.0003903,6]
[314534984,1708405918292,-500.0,0.0003903,6]
[314534985,1708405918301,-500.0,0.0003903,6]
[314534986,1708405918310,-162.204173,0.0003903,14]
[314534987,1708405918320,-162.204173,0.0003903,14]
[314534988,1708405918329,-243.56,0.0003903,6]
[314534989,1708405918338,-500.0,0.0003903,6]
[314534990,1708405918348,-500.0,0.0003903,6]
[314534991,1708405918358,-500.0,0.0003903,6]
[314534992,1708405918367,-517.91,0.0003903,6]
[314534993,1708405918570,-500.0,0.0003903,6]
[314534994,1708405918582,-151.0,0.0003903,2]
[314534995,1708405918592,-500.0,0.0003903,6]
[314534996,1708405918602,-151.0,0.0003903,2]
[314534997,1708405918611,-500.0,0.0003903,6]
[314534998,1708405918620,-500.0,0.0003903,6]
[314534999,1708405918630,-500.0,0.0003903,6]
[314535000,1708405918640,-500.0,0.0003903,6]
[314535001,1708405918649,-500.0,0.0003903,6]
[314535002,1708405918659,-503.07,0.0003903,6]
[314535003,1708405918668,-151.0,0.0003903,14]
[314535004,1708405918678,-500.0,0.0003903,6]
[314535005,1708405918687,-500.0,0.0003903,6]
[314535006,1708405918696,-857.77,0.0003903,6]
[314535007,1708405918706,-610.42,0.0003903,6]
[314535008,1708405918715,-284.921366,0.0003903,14]
[314535009,1708405918724,-284.921366,0.0003903,14]
[314535010,1708405918734,-500.0,0.0003903,6]
[314535011,1708405918743,-500.0,0.0003903,6]
[314535012,1708405918752,-500.0,0.0003903,6]
[314535013,1708405918762,-251.823036,0.0003903,14]
[314535014,1708405918771,-151.0,0.0003903,3]
[314535015,1708405918781,-251.823036,0.0003903,14]
[314535016,1708405918790,-584.52,0.0003903,6]
[314535017,1708405918800,-622.47,0.0003903,6]
[314535018,1708405918809,-500.0,0.0003903,6]
[314535019,1708405918819,-500.0,0.0003903,6]
[314535020,1708405918829,-176.29,0.0003903,6]
[314535021,1708405918838,-500.0,0.0003903,6]
[314535022,1708405918847,-176.89438,0.0003903,14]
[314535023,1708405918856,-500.0,0.0003903,6]
[314535024,1708405918865,-176.89438,0.0003903,14]
[314535025,1708405918875,-500.0,0.0003903,6]
[314535026,1708405918884,-500.0,0.0003903,6]
[314535027,1708405918893,-861.275094,0.0003903,14]
[314535028,1708405918902,-591.53254458,0.0003903,6]
[314535029,1708405918911,-500.0,0.0003903,6]
[314535030,1708405918920,-861.275094,0.0003903,14]
[314535031,1708405918929,-265.786433,0.0003903,14]
[314535032,1708405918938,-500.0,0.0003903,6]
[314535033,1708405918947,-151.0,0.0003903,14]
[314535034,1708405918956,-151.0,0.0003903,14]
[314535035,1708405918966,-500.0,0.0003903,6]
[314535036,1708405918976,-151.0,0.0003903,14]
[314535037,1708405918988,-653.77,0.0003903,6]
[314535038,1708405918997,-651.49,0.0003903,6]
[314535039,1708405919006,-500.0,0.0003903,6]
[314535040,1708405919016,-151.0,0.0003903,14]
[314535041,1708405919026,-500.0,0.0003903,6]
[314535042,1708405919035,-245.116648,0.0003903,14]
[314535043,1708405919045,-151.0,0.0003903,14]
[314535044,1708405919055,-568.04,0.0003903,6]
[314535045,1708405919066,-500.0,0.0003903,6]
[314535046,1708405919076,-1234.037744,0.0003903,14]
[314535047,1708405919085,-151.0,0.0003903,14]
[314535048,1708405919094,-1234.037744,0.0003903,14]
[314535049,1708405919104,-500.0,0.0003903,6]
[314535050,1708405919113,-502.26,0.0003903,6]
[314535051,1708405919123,-500.0,0.0003903,6]
[314535052,1708405919132,-151.0,0.0003903,14]
[314535053,1708405919141,-500.0,0.0003903,6]
[314535054,1708405919151,-592.29,0.0003903,6]
[314535055,1708405919160,-609.58,0.0003903,6]
[314535056,1708405919170,-500.0,0.0003903,6]
[314535057,1708405919179,-500.0,0.0003903,6]
[314535058,1708405919188,-500.0,0.0003903,6]
[314535059,1708405919197,-1156.3,0.0003903,6]
[314535060,1708405919206,-440.84369884,0.0003903,6]
[314535061,1708405919215,-500.0,0.0003903,6]
[314535062,1708405919224,-500.0,0.0003903,6]
[314535063,1708405919234,-500.0,0.0003903,6]
[314535064,1708405919243,-500.0,0.0003903,6]
[314535065,1708405919252,-1450.35,0.0003903,6]
[314535066,1708405919261,-710.23,0.0003903,6]
[314535067,1708405919271,-612.87,0.0003903,6]
[314535068,1708405919281,-1376.34,0.0003903,6]
[314535069,1708405919290,-500.0,0.0003903,6]
[314535070,1708405919299,-2122.43,0.0003903,6]
[314535071,1708405919308,-500.0,0.0003903,6]
[314535072,1708405919318,-500.0,0.0003903,6]
[314535073,1708405919327,-1666.11,0.0003903,6]
[314535074,1708405919336,-996.96,0.0003903,6]
[314535075,1708405919345,-500.0,0.0003903,6]
[314535076,1708405919355,-2200.91,0.0003903,6]
[314535077,1708405919364,-3505.57,0.0003903,6]
[314535078,1708405919373,-1549.1,0.0003903,6]
[314535079,1708405919383,-500.0,0.0003903,6]
[314535080,1708405919392,-1427.74,0.0003903,6]
[314535081,1708405919402,-500.0,0.0003903,6]
[314535082,1708405919412,-1106.24,0.0003903,6]
[314535083,1708405919422,-500.0,0.0003903,6]
[314535084,1708405919432,-558.37,0.0003903,6]
[314535085,1708405919442,-459.54581384,0.0003903,6]
[314535086,1708405919452,-8266.61,0.0003903,6]
[314535087,1708405919463,-500.0,0.0003903,6]
[314535088,1708405919472,-500.0,0.0003903,6]
[314535089,1708405919483,-500.0,0.0003903,6]
[314535090,1708405919493,-1222.07,0.0003903,6]
[314535091,1708405919503,-500.0,0.0003903,6]
[314535092,1708405919513,-1383.97,0.0003903,6]
[314535093,1708405919524,-1188.64,0.0003903,6]
[314535094,1708405919534,-1841.65,0.0003903,6]
[314535095,1708405919544,-514.51,0.0003903,6]
[314535096,1708405919554,-500.0,0.0003903,6]
[314535097,1708405919564,-500.0,0.0003903,6]
[314535098,1708405919574,-500.0,0.0003903,6]
[314535099,1708405919584,-500.0,0.0003903,6]
[314535100,1708405919594,-2051.17,0.0003903,6]
[314535101,1708405919603,-1668.23,0.0003903,6]
[314535102,1708405919613,-500.0,0.0003903,6]
[314535103,1708405919623,-1172.7,0.0003903,6]
[314535104,1708405919633,-500.0,0.0003903,6]
[314535105,1708405919643,-152.0,0.00039057,3]
[314535106,1708405919653,-500.0,0.00039065,6]
[314535107,1708405919663,-426.55659906,0.00039065,6]
[314535108,1708405919672,-151.0,0.00039087,14]
[314535109,1708405919682,-198.301727,0.00039087,14]
[314535110,1708405919692,-152.877354,0.00039087,14]
[314535111,1708405919702,-10201.07882979,0.00039099,2]
[314535112,1708405919711,-1782.3382,0.0003911,2]
[314535113,1708405919720,-177.58,0.00039127,2]
[314535114,1708405919729,-151.0,0.0003913,14]
[314535115,1708405919738,-151.0,0.0003913,14]
[314535116,1708405919747,-151.0,0.0003913,14]
[314535117,1708405919757,-151.0,0.0003913,14]
[314535118,1708405919766,-216.801343,0.0003913,14]
[314535119,1708405919775,-216.801343,0.0003913,14]
[314535120,1708405919785,-151.0,0.0003913,14]
[314535121,1708405919794,-151.0,0.0003913,14]
[314535122,1708405919804,-151.0,0.0003913,14]
[314535123,1708405919813,-302.677308,0.0003913,14]
[314535124,1708405919822,-302.677308,0.0003913,14]
[314535125,1708405919831,-198.526705,0.0003913,14]
[314535126,1708405919840,-198.526705,0.0003913,14]
[314535127,1708405919849,-151.0,0.0003913,14]
[314535128,1708405919859,-151.0,0.0003913,14]
[314535129,1708405919868,-1020.38,0.0003913,6]
[314535130,1708405919877,-1222.32,0.0003913,6]
[314535131,1708405919886,-500.0,0.0003913,6]
[314535132,1708405919895,-1934.95,0.0003913,6]
[314535133,1708405919904,-795.84,0.0003913,6]
[314535134,1708405919913,-1767.15,0.0003913,6]
[314535135,1708405919923,-1015.81,0.0003913,6]
[314535136,1708405919932,-734.77,0.0003913,6]
[314535137,1708405919942,-1939.44,0.0003913,6]
[314535138,1708405919951,-1351.97,0.0003913,6]
[314535139,1708405919962,-1088.16,0.0003913,6]
[314535140,1708405919971,-1475.67,0.0003913,6]
[314535141,1708405919982,-1038.28,0.0003913,6]
[314535142,1708405919991,-1154.43,0.0003913,6]
[314535143,1708405920000,-1030.29,0.0003913,6]
[314535144,1708405920009,-2781.04,0.0003913,6]
[314535145,1708405920019,-524.0,0.0003913,6]
[314535146,1708405920029,-677.33,0.0003913,6]
[314535147,1708405920038,-4170.19,0.0003913,6]
[314535148,1708405920048,-500.0,0.0003913,6]
[314535149,1708405920056,-1974.77,0.0003913,6]
[314535150,1708405920066,-3026.21,0.0003913,6]
[314535151,1708405920076,-686.23,0.0003913,6]
[314535152,1708405920086,-764.58,0.0003913,6]
[314535153,1708405920095,-765.68,0.0003913,6]
[314535154,1708405920105,-1513.9,0.0003913,6]
[314535155,1708405920116,-1299.32,0.0003913,6]
[314535156,1708405920125,-940.65,0.0003913,6]
[314535157,1708405920135,-196.385315,0.00039131,14]
[314535158,1708405920144,-151.0,0.00039131,14]
[314535159,1708405920153,-151.0,0.00039131,14]
[314535160,1708405920163,-921.1,0.00039131,6]
[314535161,1708405920173,-1958.76,0.00039131,6]
[314535162,1708405920183,-1249.32,0.00039131,6]
[314535163,1708405920193,-902.22,0.00039131,6]
[314535164,1708405920202,-664.99,0.00039131,6]
[314535165,1708405920212,-669.7,0.00039131,6]
[314535166,1708405920221,-3868.49,0.00039131,6]
[314535167,1708405920230,-1885.97,0.00039131,6]
[314535168,1708405920240,-658.2,0.00039131,6]
[314535169,1708405920249,-1639.72,0.00039131,6]
[314535170,1708405920259,-1006.78,0.00039131,6]
[314535171,1708405920269,-673.99,0.00039131,6]
[314535172,1708405920279,-505.6,0.00039131,6]
[314535173,1708405920289,-1619.9,0.00039131,6]
[314535174,1708405920298,-927.69,0.00039131,6]
[314535175,1708405920307,-2967.23,0.00039131,6]
[314535176,1708405920317,-1060.89,0.00039131,6]
[314535177,1708405920327,-1666.19,0.00039131,6]
[314535178,1708405920336,-720.79,0.00039131,6]
[314535179,1708405920346,-1070.65,0.00039131,6]
[314535180,1708405920356,-500.84,0.00039131,6]
[314535181,1708405920366,-999.67,0.00039131,6]
[314535182,1708405920375,-850.24,0.00039131,6]
[314535183,1708405920385,-1626.55,0.00039131,6]
[314535184,1708405920395,-873.93,0.00039131,6]
[314535185,1708405920405,-500.0,0.00039131,6]
[314535186,1708405920415,-1425.91,0.00039131,6]
[314535187,1708405920424,-156.0,0.00039163,7]
[314535188,1708405920433,-151.0,0.00039178,14]
[314535189,1708405920444,-162.204173,0.00039178,14]
[314535190,1708405920453,-162.204173,0.00039178,14]
[314535191,1708405920462,-151.0,0.00039178,2]
[314535192,1708405920472,-151.0,0.00039178,2]
[314535193,1708405920482,-158.111638,0.00039178,14]
[314535194,1708405920491,-284.921366,0.00039178,14]
[314535195,1708405920500,-284.921366,0.00039178,14]
[314535196,1708405920509,-251.823036,0.00039178,14]
[314535197,1708405920518,-151.887268,0.00039178,3]
[314535198,1708405920527,-251.823036,0.00039178,14]
[314535199,1708405920537,-176.89438,0.00039178,14]
[314535200,1708405920546,-176.89438,0.00039178,14]
[314535201,1708405920555,-861.275094,0.00039178,14]
[314535202,1708405920564,-861.275094,0.00039178,14]
[314535203,1708405920574,-215.643345,0.00039178,14]
[314535204,1708405920584,-151.0,0.00039178,14]
[314535205,1708405920593,-151.0,0.00039178,14]
[314535206,1708405920603,-151.0,0.00039178,14]
[314535207,1708405920612,-291.084867,0.00039178,14]
[314535208,1708405920621,-1234.037744,0.00039178,14]
[314535209,1708405920631,-165.460035,0.00039178,14]
[314535210,1708405920640,-1234.037744,0.00039178,14]
[314535211,1708405920649,-151.0,0.00039178,14]
[314535212,1708405920659,-151.0,0.00039178,14]
[314535213,1708405920668,-151.0,0.00039178,14]
[314535214,1708405920677,-157.733043,0.00039178,14]
[314535215,1708405920687,-157.733043,0.00039178,14]
[314535216,1708405920697,-151.0,0.00039178,14]
[314535217,1708405920707,-385.877273,0.00039178,14]
[314535218,1708405920717,-385.877273,0.00039178,14]
[314535219,1708405920726,-151.0,0.00039178,14]
[314535220,1708405920735,-359.551124,0.00039178,14]
[314535221,1708405920745,-359.551124,0.00039178,14]
[314535222,1708405920754,-546.017272,0.00039178,14]
[314535223,1708405920763,-546.017272,0.00039178,14]
[314535224,1708405920773,-151.0,0.00039178,14]
[314535225,1708405920783,-151.0,0.00039178,14]
[314535226,1708405920793,-236.096359,0.00039178,14]
[314535227,1708405920802,-264.886254,0.00039178,14]
[314535228,1708405920811,-236.096359,0.00039178,14]
[314535229,1708405920821,-547.996747,0.00039178,14]
[314535230,1708405920830,-547.996747,0.00039178,14]
[314535231,1708405920840,-157.555958,0.00039178,14]
[314535232,1708405920849,-157.555958,0.00039178,14]
[314535233,1708405920860,-151.0,0.00039178,14]
[314535234,1708405920869,-233.863104,0.00039178,14]
[314535235,1708405920879,-151.0,0.00039178,14]
[314535236,1708405920888,-354.775683,0.00039178,14]
[314535237,1708405920898,-354.775683,0.00039178,14]
[314535238,1708405920907,-151.0,0.00039178,14]
[314535239,1708405920917,-1447.386377,0.00039178,14]
[314535240,1708405920926,-1920.807612,0.00039178,14]
[314535241,1708405920936,-1920.807612,0.00039178,14]
[314535242,1708405920946,-1447.386377,0.00039178,14]
[314535243,1708405920955,-225.007332,0.00039178,14]
[314535244,1708405920964,-151.0,0.00039178,14]
[314535245,1708405920974,-225.007332,0.00039178,14]
[314535246,1708405920994,-151.0,0.00039178,14]
[314535247,1708405921003,-151.0,0.00039178,14]
[314535248,1708405921012,-210.155251,0.00039178,14]
[314535249,1708405921021,-151.0,0.00039178,14]
[314535250,1708405921031,-216.018257,0.00039178,14]
[314535251,1708405921040,-151.0,0.00039178,14]
[314535252,1708405921052,-3259.517972,0.00039178,14]
[314535253,1708405921061,-946627.48,0.00039178,2]
[314535254,1708405921071,-157.0212031,0.00039198,13]
[314535255,1708405921081,-1000.0,0.000392,2]
[314535256,1708405921090,-2000.0,0.000392,2]
[314535257,1708405921099,-93750.68,0.000392,7]
[314535258,1708405921109,-40082.05,0.000392,7]
[314535259,1708405921118,-510.83,0.00039239,6]
[314535260,1708405921128,-500.0,0.00039239,6]
[314535261,1708405921137,-500.0,0.00039239,6]
[314535262,1708405921146,-791.81,0.00039239,6]
[314535263,1708405921156,-500.0,0.00039239,6]
[314535264,1708405921165,-500.0,0.00039239,6]
[314535265,1708405921175,-500.0,0.00039239,6]
[314535266,1708405921184,-500.0,0.00039239,6]
[314535267,1708405921194,-308.38871898,0.00039239,6]
[314535268,1708405921203,-513.26,0.00039239,6]
[314535269,1708405921213,-500.0,0.00039239,6]
[314535270,1708405921222,-500.0,0.00039239,6]
[314535271,1708405921231,-500.0,0.00039239,6]
[314535272,1708405921240,-500.0,0.00039239,6]
[314535273,1708405921249,-500.0,0.00039239,6]
[314535274,1708405921259,-500.0,0.00039239,6]
[314535275,1708405921269,-500.0,0.00039239,6]
[314535276,1708405921278,-644.76,0.00039239,6]
[314535277,1708405921287,-500.0,0.00039239,6]
[314535278,1708405921295,-500.0,0.00039239,6]
[314535279,1708405921305,-500.0,0.00039239,6]
[314535280,1708405921314,-500.0,0.00039239,6]
[314535281,1708405921324,-500.0,0.00039239,6]
[314535282,1708405921333,-500.0,0.00039239,6]
[314535283,1708405921342,-565.81,0.00039239,6]
[314535284,1708405921352,-214.29882515,0.00039239,6]
[314535285,1708405921361,-500.0,0.00039239,6]
[314535286,1708405921370,-500.0,0.00039239,6]
[314535287,1708405921380,-500.0,0.00039239,6]
[314535288,1708405921390,-500.0,0.00039239,6]
[314535289,1708405921399,-500.0,0.00039239,6]
[314535290,1708405921409,-500.0,0.00039239,6]
[314535291,1708405921418,-570.75941064,0.00039239,6]
[314535292,1708405921428,-551.79,0.00039239,6]
[314535293,1708405921437,-581.45,0.00039239,6]
[314535294,1708405921448,-500.0,0.00039239,6]
[314535295,1708405921457,-500.0,0.00039239,6]
[314535296,1708405921467,-523.73,0.00039239,6]
[314535297,1708405921476,-500.0,0.00039239,6]
[314535298,1708405921486,-515.57,0.00039239,6]
[314535299,1708405921495,-720.38,0.00039239,6]
[314535300,1708405921504,-500.0,0.00039239,6]
[314535301,1708405921513,-500.0,0.00039239,6]
[314535302,1708405921522,-500.0,0.00039239,6]
[314535303,1708405921532,-500.0,0.00039239,6]
[314535304,1708405921542,-500.0,0.00039239,6]
[314535305,1708405921551,-500.0,0.00039239,6]
[314535306,1708405921561,-256.85710472,0.00039239,6]
[314535307,1708405921570,-538.38253531,0.00039239,6]
[314535308,1708405921581,-500.0,0.00039239,6]
[314535309,1708405921590,-547.53,0.00039239,6]
[314535310,1708405921599,-500.0,0.00039239,6]
[314535311,1708405921609,-500.0,0.00039239,6]
[314535312,1708405921618,-500.0,0.00039239,6]
[314535313,1708405921627,-500.0,0.00039239,6]
[314535314,1708405921637,-500.0,0.00039239,6]
[314535315,1708405921646,-500.0,0.00039239,6]
[314535316,1708405921656,-500.0,0.00039239,6]
[314535317,1708405921666,-538.99,0.00039239,6]
[314535318,1708405921675,-500.0,0.00039239,6]
[314535319,1708405921684,-500.0,0.00039239,6]
[314535320,1708405921879,-500.0,0.00039239,6]
[314535321,1708405921889,-815.58,0.00039239,6]
[314535322,1708405921899,-500.0,0.00039239,6]
[314535323,1708405921908,-500.0,0.00039239,6]
[314535324,1708405921917,-500.0,0.00039239,6]
[314535325,1708405921926,-500.0,0.00039239,6]
[314535326,1708405921936,-500.0,0.00039239,6]
[314535327,1708405921947,-606.1,0.00039239,6]
[314535328,1708405921957,-500.0,0.00039239,6]
[314535329,1708405921967,-825.71,0.00039239,6]
[314535330,1708405921977,-500.0,0.00039239,6]
[314535331,1708405921988,-500.0,0.00039239,6]
[314535332,1708405921997,-500.0,0.00039239,6]
[314535333,1708405922007,-151.0,0.0003924,14]
[314535334,1708405922016,-500.0,0.0003924,6]
[314535335,1708405922026,-500.0,0.0003924,6]
[314535336,1708405922035,-587.77983829,0.0003924,6]
[314535337,1708405922045,-500.0,0.0003924,6]
[314535338,1708405922055,-551.22062671,0.0003924,6]
[314535339,1708405922065,-337.34646405,0.0003924,6]
[314535340,1708405922077,-500.0,0.0003924,6]
[314535341,1708405922086,-151.0,0.0003924,14]
[314535342,1708405922096,-500.0,0.0003924,6]
[314535343,1708405922105,-151.30945,0.0003924,14]
[314535344,1708405922114,-500.0,0.0003924,6]
[314535345,1708405922124,-151.0,0.0003924,14]
[314535346,1708405922133,-151.0,0.0003924,14]
[314535347,1708405922141,-151.0,0.0003924,14]
[314535348,1708405922151,-216.801343,0.0003924,14]
[314535349,1708405922160,-216.801343,0.0003924,14]
[314535350,1708405922171,-151.0,0.0003924,14]
[314535351,1708405922180,-151.0,0.0003924,14]
[314535352,1708405922190,-210.736331,0.0003924,14]